bitfinex-derivatives/quotes_ETHF0:USTF0_20240826
["timestamp","ask_amount","ask_price","bid_price","bid_amount"]
[1724702308808,0.37306,2679.7,2679.5,3.887058]
[1724702309008,0.37306,2679.7,2679.4,3.2229572]
[1724702309203,0.37305,2679.8,2679.4,3.2229572]
[1724702310213,2.20093,2679.9,2679.5,4.20174595]
[1724702310511,1.8279,2679.9,2679.5,4.20174595]
[1724702310707,4.088,2680.0,2679.7,3.22]
[1724702311013,0.37302,2679.9,2679.8,7.42174595]
[1724702311524,0.37302,2679.9,2679.8,3.22]
[1724702312607,0.37305,2679.8,2679.6,6.8032]
[1724702312911,0.93256,2679.9,2679.6,5.0757]
[1724702313907,0.37303,2679.8,2679.6,5.0757]
[1724702314409,0.37303,2679.8,2679.7,4.03730127]
[1724702315202,5.02053,2680.0,2679.7,4.03730127]
[1724702315203,0.37302,2679.9,2679.7,4.03730127]
[1724702315910,0.37302,2679.9,2679.8,1.8914]
[1724702320506,5.0332,2680.3,2679.8,1.8914]
[1724702320712,0.37301,2680.0,2679.8,1.8914]
[1724702321611,0.37302,2680.0,2679.8,1.8914]
[1724702322004,0.37301,2680.0,2679.8,6.9091]
[1724702322922,0.37297,2680.3,2680.0,0.373]
[1724702323215,0.37297,2680.3,2680.2,3.22]
[1724702323419,0.37699115,2680.4,2680.2,3.22]
[1724702323604,0.37699115,2680.4,2680.3,1.8878]
[1724702323806,0.37298,2680.2,2680.1,1.8822]
[1724702324209,0.93243,2680.3,2680.1,5.1022]
[1724702324210,0.37298,2680.3,2680.1,5.1022]
[1724702324514,0.37297,2680.3,2680.1,5.1022]
[1724702324814,0.37298,2680.2,2680.1,5.1022]
[1724702324999,0.00403115,2680.4,2680.1,5.1022]
[1724702325000,0.37297,2680.3,2680.1,5.1022]
[1724702325510,0.37298,2680.2,2680.1,5.1022]
[1724702325706,0.37297,2680.3,2680.1,5.1022]
[1724702326012,0.37298,2680.2,2680.1,5.1022]
[1724702330018,0.37297,2680.3,2680.1,5.1022]
[1724702330225,0.37298,2680.3,2680.1,5.1022]
[1724702330410,0.37699115,2680.4,2680.1,5.1022]
[1724702330610,0.00403115,2680.4,2680.1,5.1022]
[1724702330816,0.00403115,2680.4,2680.3,3.22]
[1724702333918,0.00403115,2680.4,2680.1,5.47518]
[1724702335827,0.00403115,2680.4,2680.2,0.37298]
[1724702336021,0.00403115,2680.4,2680.1,8.31]
[1724702336320,0.00403115,2680.4,2680.3,3.22]
[1724702336726,0.00403115,2680.4,2680.3,9.22887]
[1724702337023,0.00559169,2680.7,2680.5,0.37293]
[1724702337222,0.00559169,2680.7,2680.6,5.063]
[1724702337423,0.00559169,2680.7,2680.6,9.37855812]
[1724702337619,0.00559169,2680.7,2680.6,13.10895812]
[1724702337828,0.00559169,2680.7,2680.6,13.48187812]
[1724702338121,0.00897842,2680.7,2680.6,13.48187812]
[1724702338630,0.00897842,2680.7,2680.6,13.67072385]
[1724702338818,0.37286,2681.1,2680.9,3.22]
[1724702339622,2.13795,2681.2,2680.9,3.22]
[1724702339828,2.13795,2681.2,2681.1,3.22]
[1724702339829,0.00322976,2681.2,2681.1,3.22]
[1724702340233,0.00322976,2681.2,2681.1,5.0979]
[1724702340926,0.37606976,2681.2,2681.1,5.0979]
[1724702341129,0.37606976,2681.2,2681.1,1.8779]
[1724702341323,0.37288,2680.9,2680.8,0.00559169]
[1724702341625,1.30509,2680.9,2680.8,0.00559169]
[1724702342022,0.37288,2680.9,2680.8,0.00559169]
[1724702342529,1.30509,2680.9,2680.8,0.00559169]
[1724702342832,3.10219,2680.9,2680.8,0.00559169]
[1724702343719,6.83259,2680.9,2680.8,0.00559169]
[1724702343920,10.9726,2680.9,2680.8,0.00559169]
[1724702344326,15.9726,2680.9,2680.8,0.00559169]
[1724702344718,15.9726,2680.9,2680.0,1.7339]
[1724702344719,0.93225,2680.8,2680.0,1.7339]
[1724702344915,16.9553,2680.9,2680.0,1.7339]
[1724702344916,0.93228,2680.7,2680.1,3.22]
[1724702345128,0.93228,2680.7,2680.1,4.9815]
[1724702345129,0.37295,2680.4,2680.1,4.9815]
[1724702345624,0.93228,2680.7,2680.1,4.9815]
[1724702346218,0.37297,2680.3,2680.1,4.9815]
[1724702346416,3.22,2680.6,2680.0,1.73949169]
[1724702346624,2.23349,2680.2,2680.0,1.73949169]
[1724702347129,0.37299,2680.1,2680.0,1.73949169]
[1724702347729,0.37298,2680.2,2680.0,1.73949169]
[1724702348025,0.37299,2680.1,2680.0,1.73949169]
[1724702348228,0.37299,2680.2,2680.0,1.73949169]
[1724702348430,7.82857566,2680.6,2680.1,3.97712588]
[1724702348431,6.83675,2680.6,2680.1,3.97712588]
[1724702348631,6.83675,2680.6,2680.0,8.93661757]
[1724702348819,0.37298,2680.2,2680.0,4.95949169]
[1724702349017,0.37298,2680.2,2680.1,3.97712588]
[1724702349630,0.37299,2680.1,2680.0,1.73949169]
[1724702349827,1.8164,2680.1,2680.0,1.73949169]
[1724702350219,4.088,2680.6,2680.0,12.68555664]
[1724702350425,4.088,2680.6,2680.2,3.22]
[1724702350723,0.37295,2680.5,2680.0,6.81479169]
[1724702351030,0.37296,2680.4,2680.0,6.81479169]
[1724702351335,0.37294,2680.5,2680.1,3.99486495]
[1724702352427,2.23022,2680.7,2680.1,3.99486495]
[1724702352621,0.37292,2680.6,2680.1,3.99486495]
[1724702352827,0.37294,2680.5,2680.1,3.99486495]
[1724702353128,0.37296,2680.4,2680.0,6.81479169]
[1724702353432,0.37294,2680.5,2680.1,4.12504649]
[1724702353926,0.37295,2680.4,2680.1,4.12504649]
[1724702354134,1.8573,2680.7,2680.1,4.12504649]
[1724702354135,0.37295,2680.5,2680.1,4.12504649]
[1724702354331,0.37293,2680.6,2680.1,4.12504649]
[1724702354526,0.37293,2680.6,2680.2,3.22]
[1724702354726,1.8573,2680.7,2680.2,3.22]
[1724702355032,0.37296,2680.4,2680.3,1.8573]
[1724702355232,1.8573,2680.7,2680.3,1.8573]
[1724702355233,0.37293,2680.6,2680.3,1.8573]
[1724702355431,2.23022,2680.7,2680.3,1.8573]
[1724702355830,0.37292,2680.6,2680.3,1.8573]
[1724702356138,3.2078,2680.9,2680.4,7.68927046]
[1724702356436,0.93535976,2681.2,2680.6,3.22]
[1724702356437,2.20707976,2681.2,2680.6,3.22]
[1724702356622,0.37287,2681.1,2680.6,3.41107769]
[1724702356935,1.83422976,2681.2,2680.6,3.41107769]
[1724702356936,0.37288,2680.9,2680.7,3.97792644]
[1724702357235,1.83422976,2681.2,2680.7,3.97792644]
[1724702357429,2.20707976,2681.2,2680.8,1.7398]
[1724702357834,0.37285,2681.1,2680.9,3.9243467]
[1724702358039,0.37287,2681.0,2680.9,3.9243467]
[1724702358230,2.76634976,2681.2,2680.8,1.7398]
[1724702358734,0.37287,2681.0,2680.8,1.7398]
[1724702358932,1.83422976,2681.2,2680.7,1.8903]
[1724702359234,3.2078,2680.8,2680.7,5.1103]
[1724702359533,3.2078,2680.8,2680.7,9.00027842]
[1724702359834,3.2078,2680.8,2680.7,12.73067842]
[1724702360337,3.5807,2680.8,2680.7,1.8903]
[1724702360934,3.2078,2680.8,2680.7,5.6207]
[1724702361237,3.5807,2680.8,2680.7,1.8903]
[1724702361530,0.37297,2680.3,2680.0,3.22559169]
[1724702361721,0.93232,2680.6,2680.1,1.8071]
[1724702361925,0.37298,2680.3,2680.1,5.99444338]
[1724702362332,2.79362,2680.6,2680.1,5.99444338]
[1724702362333,3.58078,2680.2,2680.1,1.8071]
[1724702364030,3.58078,2680.2,2680.0,0.00559169]
[1724702364031,1.30548,2680.1,2680.0,0.00559169]
[1724702364234,4.10419,2680.1,2680.0,0.00559169]
[1724702364733,4.10419,2680.1,2679.5,3.6723]
[1724702364734,0.37306,2679.7,2679.5,3.6723]
[1724702364927,3.2078,2679.7,2679.5,3.6723]
[1724702365128,0.37303,2679.9,2679.5,3.6723]
[1724702365336,0.37304,2679.8,2679.5,3.6723]
[1724702365838,0.37305,2679.7,2679.5,3.6723]
[1724702366036,0.00559169,2679.9,2679.5,3.6723]
[1724702366231,0.37306,2679.6,2679.5,3.6723]
[1724702366437,2.79492,2679.8,2679.4,0.00854889]
[1724702366644,0.37307,2679.6,2679.5,1.8685]
[1724702366940,2.23534,2679.8,2679.5,1.8685]
[1724702367237,0.37305,2679.7,2679.5,1.8685]
[1724702367431,2.23534,2679.8,2679.5,1.8685]
[1724702367827,0.37305,2679.7,2679.5,1.8685]
[1724702368827,1.8623,2679.8,2679.5,1.8685]
[1724702369240,0.37305,2679.7,2679.5,1.8685]
[1724702369937,0.37306,2679.6,2679.5,1.8685]
[1724702370432,2.23534,2679.8,2679.5,1.8685]
[1724702370628,0.37306,2679.6,2679.5,1.8685]
[1724702371441,0.37306,2679.6,2678.5,3.59321]
[1724702371442,0.93273,2679.4,2678.5,3.59321]
[1724702371738,0.37313,2679.2,2678.7,5.97497727]
[1724702371931,0.93273,2679.4,2678.7,5.97497727]
[1724702371932,0.37314,2679.1,2678.7,5.97497727]
[1724702372132,0.93284,2679.1,2678.6,3.5718]
[1724702372325,0.37317,2678.9,2678.6,3.5753314]
[1724702372527,3.2078,2678.9,2678.6,3.58092309]
[1724702372839,3.58097,2678.9,2678.6,3.58092309]
[1724702373140,3.2078,2678.9,2678.6,3.58092309]
[1724702373342,3.2078,2678.9,2678.8,3.22]
[1724702374227,3.2078,2678.9,2678.6,3.58092309]
[1724702374638,3.2078,2678.9,2678.7,4.04396178]
[1724702378135,3.2078,2678.9,2678.6,3.58092309]
[1724702381637,3.2078,2678.9,2678.7,3.22]
[1724702381841,3.2078,2678.9,2678.7,7.34331261]
[1724702382137,3.2078,2678.9,2678.7,4.12331261]
[1724702382331,3.58096,2678.9,2678.7,4.12331261]
[1724702382534,3.2078,2678.9,2678.7,4.12331261]
[1724702383436,3.2078,2678.9,2678.7,7.34331261]
[1724702384638,3.2078,2678.9,2678.7,4.12331261]
[1724702384834,3.2078,2678.9,2678.6,3.58092309]
[1724702385035,1.8076,2678.8,2678.6,1.81422309]
[1724702385238,0.37319,2678.7,2678.6,1.81422309]
[1724702385644,2.18078,2678.8,2678.6,1.81422309]
[1724702385846,0.37319,2678.7,2678.6,1.81422309]
[1724702386437,0.37319,2678.7,2678.6,0.00912309]
[1724702387343,1.8076,2678.8,2678.6,0.00912309]
[1724702387539,2.18078,2678.8,2678.6,0.00912309]
[1724702388137,2.18077,2678.8,2678.6,0.00912309]
[1724702388441,3.7328,2678.7,2678.6,0.00912309]
[1724702388835,4.10599,2678.7,2678.6,0.00912309]
[1724702389138,2.18078,2678.8,2678.6,0.00912309]
[1724702389442,0.00313975,2679.1,2678.7,7.64164608]
[1724702389740,0.00313975,2679.1,2678.8,8.7453]
[1724702390246,0.00313975,2679.1,2678.9,3.90884608]
[1724702390539,0.00313975,2679.1,2678.9,7.64164608]
[1724702390748,0.00313975,2679.1,2679.0,3.7328]
[1724702391133,0.00313975,2679.1,2679.0,7.96732284]
[1724702391935,0.00559169,2679.9,2679.6,0.37306]
[1724702392239,0.00559169,2679.9,2679.8,3.22]
[1724702392851,0.00990444,2679.9,2679.8,11.22499872]
[1724702393439,3.2078,2680.6,2679.8,16.22499872]
[1724702393645,3.2078,2680.6,2680.3,3.22]
[1724702393943,0.37294,2680.5,2680.3,3.22]
[1724702394150,4.54081,2681.0,2680.5,3.22]
[1724702394151,6.8164,2681.0,2680.5,3.22]
[1724702394445,2.22221728,2681.0,2680.8,3.22]
[1724702394647,1.84934728,2681.0,2680.8,3.22]
[1724702394835,0.00964728,2681.0,2680.8,3.22]
[1724702395042,0.00964728,2681.0,2680.9,7.9846109]
[1724702395338,3.2078,2681.7,2680.9,13.3574909]
[1724702395538,3.2078,2681.7,2681.6,3.22]
[1724702396244,0.37603904,2681.7,2681.6,3.22]
[1724702396445,0.37604904,2681.7,2681.4,3.22]
[1724702397452,0.00326904,2681.7,2681.6,3.22]
[1724702399945,0.00326904,2681.7,2681.4,3.22]
[1724702399946,4.10484904,2681.7,2681.4,3.22]
[1724702400146,0.00326904,2681.7,2681.6,3.22]
[1724702403550,0.37603904,2681.7,2681.6,3.22]
[1724702403748,0.3728,2681.5,2681.4,3.22]
[1724702404250,0.37281,2681.5,2681.2,7.27855376]
[1724702404552,3.21106904,2681.7,2681.2,3.22]
[1724702404553,0.37282,2681.4,2681.2,3.22]
[1724702404756,0.37281,2681.5,2681.2,3.22]
[1724702404950,0.37281,2681.4,2681.2,3.22]
[1724702405452,0.37281,2681.5,2681.2,3.22]
[1724702405951,3.21106904,2681.7,2681.4,3.22]
[1724702406251,0.37283,2681.3,2681.2,3.22]
[1724702406453,4.14300904,2681.7,2681.2,3.22]
[1724702406640,0.37283,2681.3,2681.2,3.22]
[1724702407150,4.10243,2681.3,2681.2,3.22]
[1724702407456,0.37285,2681.2,2681.0,3.22]
[1724702407749,2.12515,2681.2,2681.0,3.22]
[1724702408144,1.7523,2681.2,2681.0,3.22]
[1724702408450,3.7296,2681.1,2680.7,3.22]
[1724702408656,0.37289,2680.9,2680.7,3.22]
[1724702409154,0.37292,2680.6,2680.5,0.00916723]
[1724702409557,4.10332,2680.6,2680.5,0.00916723]
[1724702409944,3.7304,2680.6,2680.5,0.00916723]
[1724702410145,0.37285,2681.1,2680.5,0.00916723]
[1724702410349,5.33295,2681.2,2680.6,3.59292]
[1724702410555,0.37286,2681.1,2680.6,3.59292]
[1724702410756,0.37286,2681.1,2680.9,3.22]
[1724702410953,5.33295,2681.2,2680.9,3.22]
[1724702411255,4.9601,2681.2,2680.9,3.22]
[1724702411451,2.8211,2681.6,2681.1,3.22]
[1724702411452,0.3728,2681.5,2681.1,3.22]
[1724702411659,6.0862,2681.6,2681.1,3.22]
[1724702411852,0.37282,2681.4,2681.1,3.22]
[1724702412156,5.0645,2681.6,2681.3,3.22]
[1724702412361,5.43729,2681.6,2681.3,3.22]
[1724702412550,5.0645,2681.6,2681.3,3.22]
[1724702412856,5.43729,2681.6,2681.3,3.22]
[1724702413260,5.43729,2681.6,2681.4,0.0042]
[1724702413457,0.3728,2681.5,2681.4,0.0042]
[1724702413755,5.0344,2681.5,2681.4,0.0042]
[1724702413953,10.0344,2681.5,2681.4,0.0042]
[1724702414964,0.3729,2680.8,2680.5,1.86416723]
[1724702415256,0.93218,2681.0,2680.5,1.86416723]
[1724702415457,0.37292,2680.6,2680.5,1.86416723]
[1724702415661,0.37292,2680.7,2680.5,1.86416723]
[1724702415852,0.3729,2680.8,2680.5,1.86416723]
[1724702416052,1.7655,2681.0,2680.7,0.3729]
[1724702416249,1.7655,2681.0,2680.6,8.34266265]
[1724702416452,2.13838,2681.0,2680.6,8.71558265]
[1724702416648,1.7655,2681.0,2680.6,8.71558265]
[1724702416860,4.088,2681.2,2680.9,4.67287]
[1724702417058,4.46084,2681.2,2680.9,4.3]
[1724702417261,4.088,2681.2,2680.6,4.3]
[1724702417449,0.9322,2681.0,2680.5,1.86416723]
[1724702417658,0.3729,2680.8,2680.5,1.86416723]
[1724702417849,0.37291,2680.7,2680.5,1.86416723]
[1724702418462,0.37292,2680.6,2680.5,1.86416723]
[1724702419065,2.85494,2680.9,2680.5,0.00916723]
[1724702419066,0.37292,2680.7,2680.5,0.00916723]
[1724702419263,0.3729,2680.8,2680.5,0.00916723]
[1724702419864,0.3729,2680.8,2680.5,1.75186723]
[1724702420055,4.088,2681.2,2680.6,4.3]
[1724702420359,4.088,2681.2,2680.7,0.37291]
[1724702420560,0.37286,2681.1,2680.6,10.46256893]
[1724702420765,0.37286,2681.1,2680.8,4.05946226]
[1724702421065,0.37286,2681.1,2680.7,4.05946226]
[1724702421266,4.088,2681.2,2680.9,4.05946226]
[1724702421267,0.37287,2681.0,2680.9,4.05946226]
[1724702421567,4.088,2681.2,2680.6,4.3]
[1724702421757,0.37292,2680.7,2680.5,1.75186723]
[1724702422066,0.37292,2680.6,2680.5,1.75186723]
[1724702422269,0.37292,2680.6,2680.5,0.00916723]
[1724702423058,4.10332,2680.6,2680.5,0.00916723]
[1724702423267,4.10332,2680.6,2680.1,1.838]
[1724702423268,0.37297,2680.3,2680.1,1.838]
[1724702423564,9.66272,2680.6,2679.4,7.5078]
[1724702423565,0.93239,2680.4,2679.4,7.5078]
[1724702423864,0.93239,2680.4,2679.4,6.0669]
[1724702423865,0.37304,2679.8,2679.4,6.0669]
[1724702424068,0.37302,2680.0,2679.4,6.0669]
[1724702424266,0.38305256,2680.0,2679.5,4.54404558]
[1724702424958,0.38305256,2680.0,2679.5,4.17097558]
[1724702425161,0.38305256,2680.0,2679.5,4.54404558]
[1724702425361,0.01003256,2680.0,2679.8,0.37302]
[1724702425555,0.01003256,2680.0,2679.9,2.26012]
[1724702425755,0.01003256,2680.0,2679.9,6.32271718]
[1724702425969,0.01003256,2680.0,2679.9,10.05391718]
[1724702426565,7.66872,2680.6,2680.0,0.373]
[1724702426766,0.37294,2680.5,2680.0,4.3]
[1724702426961,0.37294,2680.5,2680.1,4.034938]
[1724702427463,4.088,2680.6,2680.1,4.034938]
[1724702427664,0.00284585,2680.5,2680.1,4.034938]
[1724702427863,0.00284585,2680.5,2680.1,4.407928]
[1724702428263,0.00284585,2680.5,2680.2,0.37297]
[1724702428569,0.00284585,2680.5,2680.3,4.24254881]
[1724702429669,0.00284585,2680.5,2680.2,4.01417375]
[1724702429859,0.00284585,2680.5,2680.4,4.24254881]
[1724702430060,0.00284585,2680.5,2680.3,4.24383022]
[1724702430460,0.00284585,2680.5,2680.2,1.854]
[1724702430667,0.00284585,2680.5,2680.3,3.95151738]
[1724702433174,0.00284585,2680.5,2680.4,1.9113]
[1724702436486,0.00284585,2680.5,2680.3,3.22]
[1724702436667,0.37578585,2680.5,2680.3,3.22]
[1724702436874,0.37297,2680.3,2680.2,1.854]
[1724702437081,3.73324585,2680.5,2680.2,1.854]
[1724702437082,2.25056,2680.4,2680.2,1.854]
[1724702437283,0.37297,2680.3,2680.2,1.854]
[1724702437475,5.6088,2680.4,2679.9,5.1071]
[1724702437679,5.6088,2680.4,2679.7,1.9093]
[1724702437680,0.373,2680.1,2679.8,1.8446]
[1724702437982,0.37301,2680.0,2679.8,1.8446]
[1724702438173,0.373,2680.1,2679.8,1.8446]
[1724702438575,6.36117,2680.3,2679.9,3.22]
[1724702438969,3.2078,2680.3,2680.1,3.22]
[1724702439681,15.187,2680.4,2680.1,3.59299]
[1724702439872,15.187,2680.4,2680.2,1.9167]
[1724702440074,15.187,2680.4,2680.2,6.33459297]
[1724702440268,15.187,2680.4,2680.2,10.26162297]
[1724702440480,15.187,2680.4,2680.2,6.2167]
[1724702440979,15.187,2680.4,2680.3,3.88998354]
[1724702441171,0.00284585,2680.5,2680.3,3.88998354]
[1724702441376,0.00284585,2680.5,2680.4,3.6535]
[1724702441772,0.00284585,2680.5,2680.4,4.02645]
[1724702441981,0.00284585,2680.5,2680.4,3.6535]
[1724702442578,4.088,2680.9,2680.5,4.10333]
[1724702442773,4.088,2680.9,2680.8,4.3]
[1724702443687,4.09269563,2680.9,2680.8,4.3]
[1724702444272,4.09269563,2680.9,2680.8,20.8464957]
[1724702444273,0.00469563,2680.9,2680.8,20.8464957]
[1724702444474,4.46076,2681.8,2680.9,0.93221]
[1724702444679,4.46076,2681.8,2681.3,4.3]
[1724702445180,4.46076,2681.8,2681.4,3.94477475]
[1724702445374,0.37277,2681.7,2681.4,3.94750624]
[1724702445579,4.09215949,2681.8,2681.4,3.94750624]
[1724702445785,4.46492949,2681.8,2681.4,5.76600624]
[1724702446876,0.37277,2681.7,2681.4,5.76600624]
[1724702447286,4.46492949,2681.8,2681.4,5.76600624]
[1724702447589,0.37279,2681.6,2681.4,5.76600624]
[1724702447886,4.5126,2681.5,2681.4,0.00273149]
[1724702448376,13.2422,2681.5,2681.4,0.00273149]
[1724702448582,13.2422,2681.5,2681.3,0.00559169]
[1724702448583,1.30485,2681.4,2681.3,0.00559169]
[1724702448780,9.56875,2681.4,2681.3,0.00559169]
[1724702448976,0.93207,2681.3,2680.6,1.9196]
[1724702449480,0.93207,2681.3,2680.6,1.9226912]
[1724702449681,0.37287,2681.1,2680.6,1.9226912]
[1724702449990,0.37287,2681.1,2680.6,1.92828289]
[1724702450192,0.37287,2681.0,2680.6,1.92828289]
[1724702450687,3.2078,2681.1,2680.6,1.92828289]
[1724702450688,2.13638,2680.9,2680.6,1.92828289]
[1724702451490,5.4939,2680.9,2680.6,0.00868289]
[1724702451684,0.37291,2680.7,2680.6,0.00868289]
[1724702452085,4.10331,2680.7,2680.6,0.00868289]
[1724702452794,7.31111,2680.7,2680.1,1.8694]
[1724702453091,0.37295,2680.5,2680.1,1.8694]
[1724702453487,0.37295,2680.4,2680.1,1.8694]
[1724702453792,0.37293,2680.6,2680.1,1.87280745]
[1724702453979,0.00559169,2680.5,2680.1,1.87280745]
[1724702454589,0.00559169,2680.5,2680.4,0.37295]
[1724702454893,0.00559169,2680.5,2680.4,4.48497501]
[1724702455094,0.00559169,2680.5,2680.4,8.21537501]
[1724702455581,6.15441916,2681.4,2680.8,0.37289]
[1724702455582,5.8742,2681.3,2680.8,0.37289]
[1724702455782,2.15903,2681.3,2680.9,3.5498]
[1724702456193,0.37284,2681.2,2680.9,3.5498]
[1724702456497,1.79179169,2681.3,2680.9,3.5498]
[1724702456694,0.00559169,2681.3,2681.1,4.67285]
[1724702456998,0.00559169,2681.3,2681.2,4.07461696]
[1724702458091,0.00559169,2681.3,2681.2,7.80421696]
[1724702460885,0.00559169,2681.3,2681.2,8.17705696]
[1724702461095,0.00559169,2681.3,2681.2,7.80421696]
[1724702461389,0.00559169,2681.3,2681.2,4.07461696]
[1724702461989,0.00415949,2681.8,2681.2,12.80421696]
[1724702462296,0.00415949,2681.8,2681.6,0.37278]
[1724702462484,0.00415949,2681.8,2681.7,1.8049]
[1724702462691,0.00415949,2681.8,2681.7,9.79327703]
[1724702462890,0.00415949,2681.8,2681.7,5.5337]
[1724702463295,0.00415949,2681.8,2681.7,9.79327703]
[1724702463493,0.37691949,2681.8,2681.7,4.25957703]
[1724702463683,0.37691949,2681.8,2681.5,0.00559169]
[1724702463684,0.00415949,2681.8,2681.5,0.00559169]
[1724702463888,0.37278,2681.6,2681.5,0.00559169]
[1724702464486,4.10158,2681.6,2681.5,0.00559169]
[1724702466089,0.37691949,2681.8,2681.5,0.00559169]
[1724702467784,0.00415949,2681.8,2681.5,0.00559169]
[1724702468591,0.37691949,2681.8,2681.5,0.00559169]
[1724702470194,0.37277,2681.7,2681.5,0.00559169]
[1724702470388,0.00415949,2681.8,2681.5,0.00559169]
[1724702470389,0.37691949,2681.8,2681.5,0.00559169]
[1724702470585,0.00415949,2681.8,2681.5,0.00559169]
[1724702471391,0.00415949,2681.8,2681.5,4.30559169]
[1724702471593,0.00415949,2681.8,2681.5,8.03439169]
[1724702471787,0.00415949,2681.8,2681.6,6.05636439]
[1724702472299,0.00415949,2681.8,2681.7,1.8069]
[1724702472701,0.00415949,2681.8,2681.7,9.43774869]
[1724702475395,0.00415949,2681.8,2681.7,9.81051869]
[1724702475597,0.00559169,2682.0,2681.8,0.37276]
[1724702475799,0.00559169,2682.0,2681.9,4.3]
[1724702476198,0.00559169,2682.0,2681.9,8.21347758]
[1724702476702,0.00991331,2682.0,2681.9,8.21347758]
[1724702478799,0.00991331,2682.0,2681.9,10.12057758]
[1724702479693,0.00991331,2682.0,2681.9,13.32837758]
[1724702480199,0.00991331,2682.0,2681.9,12.24837758]
[1724702481004,0.00991331,2682.0,2681.9,15.97717758]
[1724702481298,0.00991331,2682.0,2681.9,16.34991758]
[1724702482904,4.088,2682.3,2682.0,0.37272]
[1724702483209,0.37266,2682.6,2682.2,3.22]
[1724702483402,0.37266,2682.6,2682.2,5.0147]
[1724702483607,0.37266,2682.6,2682.3,3.95688337]
[1724702483806,0.37747175,2682.6,2682.3,3.95688337]
[1724702484018,0.37747175,2682.6,2682.3,3.96105157]
[1724702484307,0.37266,2682.5,2682.3,3.96105157]
[1724702485209,0.00481175,2682.6,2682.3,0.0041682]
[1724702485407,0.37267,2682.4,2682.3,0.0041682]
[1724702491212,9.17185,2682.4,2682.3,0.0041682]
[1724702491413,0.37274,2681.9,2681.8,3.22]
[1724702491614,0.37278,2681.6,2681.5,0.00559169]
[1724702491809,1.30475,2681.6,2681.5,0.00559169]
[1724702492114,5.03355,2681.6,2681.5,0.00559169]
[1724702492299,5.03355,2681.6,2681.5,0.01043961]
[1724702492508,0.932,2681.5,2680.8,6.4278]
[1724702492807,0.932,2681.5,2680.8,3.2078]
[1724702492808,0.93213,2681.2,2680.8,3.2078]
[1724702492998,1.8568,2681.1,2680.8,3.2078]
[1724702493203,0.37288,2680.9,2680.8,3.2078]
[1724702493499,0.37291,2680.7,2680.6,3.22]
[1724702493726,0.37751579,2680.7,2680.6,3.22914631]
[1724702495405,0.00460579,2680.7,2680.6,3.22914631]
[1724702496007,0.37751579,2680.7,2680.6,0.00914631]
[1724702496416,0.00460579,2680.7,2680.6,0.00914631]
[1724702497410,0.00460579,2680.7,2680.6,4.26324391]
[1724702503119,0.37751579,2680.7,2680.6,0.00914631]
[1724702503413,0.00460579,2680.7,2680.6,0.00914631]
[1724702505406,0.00460579,2680.7,2680.6,0.01334631]
[1724702505605,0.00460579,2680.7,2680.6,4.42818076]
[1724702506223,0.00460579,2680.7,2680.6,8.15858076]
[1724702506719,0.00559169,2681.1,2680.9,0.37287]
[1724702506914,0.00559169,2681.1,2681.0,4.3]
[1724702507110,0.00559169,2681.1,2681.0,8.31118344]
[1724702507314,0.00559169,2681.1,2681.0,12.04078344]
[1724702507614,0.00559169,2681.1,2681.0,12.41365344]
[1724702507815,0.01029615,2681.1,2681.0,14.22135344]
[1724702508510,0.01029615,2681.1,2681.0,10.49175344]
[1724702508719,0.01029615,2681.1,2681.0,14.22135344]
[1724702510009,0.01029615,2681.1,2681.0,16.05515344]
[1724702511419,4.088,2681.8,2681.0,20.68228344]
[1724702511626,0.37277,2681.8,2681.5,4.3]
[1724702512319,0.37278,2681.7,2681.5,4.3]
[1724702512718,0.00328197,2681.8,2681.6,8.14133942]
[1724702512929,0.00328197,2681.8,2681.7,5.0835]
[1724702513222,0.00328197,2681.8,2681.7,9.12325942]
[1724702513414,0.00328197,2681.8,2681.7,12.85205942]
[1724702514027,0.00328197,2681.8,2681.7,9.64425942]
[1724702514726,0.00328197,2681.8,2681.7,11.42795942]
[1724702514930,0.00328197,2681.8,2681.7,11.80072942]
[1724702516323,0.00328197,2681.8,2681.7,12.08176896]
[1724702517422,0.00366734,2681.9,2681.8,0.37276]
[1724702517624,3.2078,2682.3,2682.0,0.37273]
[1724702517826,3.2078,2682.3,2682.2,4.3]
[1724702518331,0.37266,2682.6,2682.2,3.22]
[1724702518538,0.37704118,2682.6,2682.2,3.22]
[1724702518925,0.37704118,2682.6,2682.2,4.987]
[1724702519933,0.37704118,2682.6,2682.5,3.22]
[1724702520128,0.37704118,2682.6,2682.5,3.22442435]
[1724702520331,0.37704118,2682.6,2682.5,0.00442435]
[1724702520332,11.92996118,2682.6,2682.5,0.00442435]
[1724702520635,1.30446,2682.2,2682.1,0.00559169]
[1724702520831,7.23622,2682.2,2682.1,0.00559169]
[1724702521027,0.37278,2681.6,2681.5,1.7358]
[1724702521330,0.93192,2681.8,2681.5,1.7358]
[1724702521331,0.37276,2681.8,2681.5,1.7358]
[1724702521533,1.30466,2681.8,2681.7,3.22]
[1724702521726,1.30466,2681.8,2681.7,3.22474386]
[1724702521932,5.03346,2681.8,2681.7,0.00474386]
[1724702522138,9.17316,2681.8,2681.7,0.00474386]
[1724702522637,10.96536,2681.8,2681.7,0.00474386]
[1724702522840,5.03346,2681.8,2681.7,0.00474386]
[1724702523035,10.03346,2681.8,2681.7,0.00474386]
[1724702523233,5.03346,2681.8,2681.7,0.00474386]
[1724702523431,10.03346,2681.8,2681.7,0.00474386]
[1724702524130,11.79396,2681.8,2681.7,0.00474386]
[1724702525635,5.86206,2681.8,2681.7,0.00474386]
[1724702526643,6.79396,2681.8,2681.7,0.00474386]
[1724702528636,15.93366,2681.8,2681.7,0.00474386]
[1724702528843,3.7288,2681.8,2681.7,3.22474386]
[1724702529044,0.00559169,2682.0,2681.9,0.37274]
[1724702529638,0.00559169,2682.0,2681.9,8.09736139]
[1724702530643,0.00559169,2682.0,2681.9,7.72462139]
[1724702530950,0.00559169,2682.0,2681.7,6.43254386]
[1724702531138,3.73439169,2682.0,2681.7,0.00474386]